[Event "CZE-ch U16 Girls 2023"]
[Site "Teplice"]
[Date "2023.03.18"]
[Round "9.1"]
[White "Zelbova, Lada"]
[Black "Janouskova, Adela"]
[Result "1-0"]
[ECO "A82"]
[WhiteElo "1822"]
[BlackElo "1558"]
[Annotator "NA RC COMBH"]
[PlyCount "53"]
[EventDate "2023.03.09"]
[EventType "swiss"]
[EventCountry "CZE"]
[SourceTitle "playchess.com"]
[Source "ChessBase"]
[SourceQuality "1"]
[TimeControl "40/5400+30:1800+30"]

1. d4 {[%emt 0:02:18]} f5 {[%emt 0:00:19]} 2. e4 {[%emt 0:00:13]} e6 {[%emt 0:01:52]} 3. exf5 {[%emt 0:04:43]} exf5 {[%emt 0:00:09]} 4. Nf3 {[%emt 0:04:37]} Nf6 {[%emt 0:01:55]} 5. Bd3 {[%emt 0:07:54]} d6 {[%emt 0:01:27]} 6. O-O {[%emt 0:01:30]} Be7 {[%emt 0:00:30]} 7. Re1 {[%emt 0:02:28]} O-O {[%emt 0:01:03]} 8. d5 {[%emt 0:10:49]} c6 {[%emt 0:07:27]} (8... Ne4 $142) 9. Nc3 {[%emt 0:04:53]} Kh8 {[%emt 0:03:35]} 10. Qe2 {[%emt 0:08:37]} Re8 {[%emt 0:03:37]} 11. Ng5 {[%emt 0:04:54]} Kg8 {[%emt 0:01:49]} 12. Ne6 {[%emt 0:01:27]} Bxe6 {[%emt 0:03:53]} 13. Qxe6+ {[%emt 0:02:14]} Kh8 {[%emt 0:00:31]} 14. Qxf5 {[%emt 0:01:26]} g6 {[%emt 0:06:24]} (14... Nbd7 {might work better.} 15. Bg5 Nf8) 15. Qh3 {[%emt 0:06:40]} Rg8 {[%emt 0:03:31]} 16. Re6 {[%emt 0:05:06]} Nbd7 {[%emt 0:04:37]} 17. Bf4 {[%emt 0:08:39]} Qf8 {[%emt 0:03:00]} 18. Rae1 {[%emt 0:02:17]} Re8 {[%emt 0:03:08]} 19. Bh6 {[%emt 0:02:11]} Qf7 {[%emt 0:00:59]} 20. f4 {[%emt 0:02:22]} Nc5 {[%emt 0:03:11]} 21. b4 {[%emt 0:05:32]} Nxd3 {[%emt 0:01:50]} 22. cxd3 {[%emt 0:00:36]} cxd5 {[%emt 0:02:03]} 23. Nb5 {[%emt 0:01:30]} Bf8 {[%emt 0:03:30]} 24. Bxf8 {[%emt 0:02:10]} Rgxf8 {[%emt 0:01:13]} 25. Nxd6 {[%emt 0:00:40]} Qc7 {[%emt 0:01:29]} 26. Nxe8 {[%emt 0:01:14]} Nxe8 {[%emt 0:00:38]} 27. Rxe8 $18 {[%emt 0:00:36]} 1-0

[Event "CZE-ch U16 Girls 2023"]
[Site "Teplice"]
[Date "2023.03.18"]
[Round "9.2"]
[White "Havelkova, Beata"]
[Black "Sikorova, Jana"]
[Result "1-0"]
[ECO "B22"]
[WhiteElo "1670"]
[BlackElo "1735"]
[Annotator "NA RC COMBH"]
[PlyCount "95"]
[EventDate "2023.03.09"]
[EventType "swiss"]
[EventCountry "CZE"]
[SourceTitle "playchess.com"]
[Source "ChessBase"]
[SourceQuality "1"]
[TimeControl "40/5400+30:1800+30"]

1. e4 {[%emt 0:00:03]} c5 {[%emt 0:00:06]} 2. c3 {[%emt 0:00:05]} d5 {[%emt 0:00:17]} 3. exd5 {[%emt 0:00:07]} Qxd5 {[%emt 0:00:06]} 4. d4 {[%emt 0:00:06]} e6 {[%emt 0:00:37]} 5. Nf3 {[%emt 0:00:05]} Nf6 {[%emt 0:00:17]} 6. Be3 {[%emt 0:00:07]} cxd4 {[%emt 0:00:38]} 7. cxd4 {[%emt 0:00:08]} Nc6 {[%emt 0:00:36]} 8. Nc3 {[%emt 0:00:08]} Qd6 {[%emt 0:00:49]} 9. a3 {[%emt 0:00:35]} Be7 {[%emt 0:00:36]} 10. Bd3 {[%emt 0:00:07]} O-O {[%emt 0:00:49]} 11. O-O {[%emt 0:00:05]} b6 {[%emt 0:00:29]} 12. Qe2 {[%emt 0:00:05]} Bb7 {[%emt 0:00:37]} 13. Rad1 {[%emt 0:00:07]} Rfd8 {[%emt 0:01:30]} 14. Rfe1 {[%emt 0:01:28]} Rac8 {[%emt 0:00:32]} 15. Bg5 {[%emt 0:01:28]} Qb8 {[%emt 0:12:01]} 16. Bb1 {[%emt 0:00:13]} Nd5 {[%emt 0:07:37]} 17. Qe4 {[%emt 0:39:21]} g6 {[%emt 0:07:50]} 18. Qh4 {[%emt 0:01:57]} Nxc3 {[%emt 0:18:57]} 19. bxc3 {[%emt 0:17:23]} Qc7 {[%emt 0:03:47]} 20. d5 {[%emt 0:11:48]} Rxd5 {[%emt 0:12:17]} 21. Rxd5 {[%emt 0:00:09]} exd5 {[%emt 0:00:15]} 22. Bxe7 {[%emt 0:00:44]} Nxe7 {[%emt 0:01:00]} 23. Qxe7 {[%emt 0:04:41]} Qxe7 {[%emt 0:00:56]} 24. Rxe7 {[%emt 0:00:06]} Rxc3 {[%emt 0:00:48]} 25. h3 {[%emt 0:00:49]} Bc6 {[%emt 0:06:40]} 26. Nd4 {[%emt 0:05:27]} Rc1+ {[%emt 0:04:31]} 27. Kh2 {[%emt 0:00:05]} Rxb1 {[%emt 0:00:23]} 28. Nxc6 {[%emt 0:00:07]} a5 {[%emt 0:00:14]} 29. Re3 {[%emt 0:03:56]} Kf8 {[%emt 0:03:09]} 30. Kg3 {[%emt 0:01:53]} Rc1 {[%emt 0:02:39]} 31. Ne5 {[%emt 0:01:12]} Rc7 {[%emt 0:01:09]} 32. Kf4 {[%emt 0:02:56]} f6 {[%emt 0:01:36]} 33. Ng4 {[%emt 0:01:26]} Rc6 {[%emt 0:02:18]} 34. Rd3 {[%emt 0:01:31]} Ke7 {[%emt 0:04:49]} 35. Ne3 {[%emt 0:01:18]} Ke6 {[%emt 0:02:52]} 36. Nxd5 {[%emt 0:01:54]} Rc4+ {[%emt 0:01:06]} 37. Kf3 {[%emt 0:00:36]} Rc6 {[%emt 0:00:42]} 38. Nf4+ {[%emt 0:00:59]} Ke7 {[%emt 0:00:38]} 39. Ne2 {[%emt 0:01:09]} Rc5 {[%emt 0:01:24]} 40. Nd4 {[%emt 0:01:42]} f5 {[%emt 0:01:12]} 41. Rb3 {[%emt 0:31:31]} Kd7 {[%emt 0:03:53]} 42. Kf4 {[%emt 0:00:00]} Rc4 {[%emt 0:00:49]} 43. Ke3 {[%emt 0:00:00]} Kd6 {[%emt 0:01:11]} 44. Rxb6+ {[%emt 0:00:00]} Kc7 {[%emt 0:00:49]} 45. Rb3 {[%emt 0:00:00]} Kd6 {[%emt 0:02:51]} 46. Kd3 {[%emt 0:00:00]} Rc8 {[%emt 0:00:33]} 47. Rb6+ {[%emt 0:00:00]} Kc7 {[%emt 0:01:13]} 48. Rc6+ {[%emt 0:00:00]} 1-0

[Event "CZE-ch U16 Girls 2023"]
[Site "Teplice"]
[Date "2023.03.18"]
[Round "9.3"]
[White "Cinkova, Vicky"]
[Black "Dudkova, Josefina"]
[Result "0-1"]
[ECO "E01"]
[WhiteElo "1285"]
[BlackElo "1519"]
[Annotator "NA RC COMBH"]
[PlyCount "58"]
[EventDate "2023.03.09"]
[EventType "swiss"]
[EventCountry "CZE"]
[SourceTitle "playchess.com"]
[Source "ChessBase"]
[SourceQuality "1"]
[TimeControl "40/5400+30:1800+30"]

1. d4 {[%emt 0:00:07]} Nf6 {[%emt 0:00:18]} 2. c4 {[%emt 0:00:08]} e6 {[%emt 0:00:43]} 3. g3 {[%emt 0:01:48]} d5 {[%emt 0:01:40]} 4. Bg2 {[%emt 0:03:35]} c6 {[%emt 0:02:06]} 5. c5 {[%emt 0:04:21]} Be7 {[%emt 0:07:23]} 6. Nf3 {[%emt 0:01:06]} O-O {[%emt 0:00:24]} 7. O-O {[%emt 0:00:14]} b6 {[%emt 0:01:21]} 8. b4 {[%emt 0:13:03]} a5 {[%emt 0:06:08]} 9. bxa5 {[%emt 0:02:03]} Rxa5 {[%emt 0:02:45]} 10. Bd2 {[%emt 0:02:34]} Ra8 {[%emt 0:00:52]} 11. cxb6 {[%emt 0:02:40]} Qxb6 {[%emt 0:00:47]} 12. Nc3 {[%emt 0:04:55]} Nbd7 {[%emt 0:05:57]} 13. Qc2 {[%emt 0:01:31]} Ba6 {[%emt 0:06:50]} 14. Rfb1 {[%emt 0:14:47]} Qa7 {[%emt 0:04:01]} 15. Bf4 {[%emt 0:04:54]} c5 {[%emt 0:08:29]} 16. dxc5 {[%emt 0:03:09]} Bxc5 {[%emt 0:02:56]} 17. Nd1 {[%emt 0:01:01]} Rfc8 {[%emt 0:04:26]} 18. Qb2 {[%emt 0:01:19]} Ne4 {[%emt 0:06:16]} 19. Be3 {[%emt 0:11:53]} Rab8 {[%emt 0:07:10]} 20. Bxc5 {[%emt 0:10:01]} Qxc5 {[%emt 0:01:35]} 21. Qd4 {[%emt 0:00:35]} Bxe2 {[%emt 0:03:29]} 22. a4 {[%emt 0:06:09]} Rxb1 {[%emt 0:02:51]} 23. Rxb1 {[%emt 0:00:06]} Qc2 {[%emt 0:00:34]} 24. Ra1 {[%emt 0:01:23]} Bxd1 {[%emt 0:07:03]} 25. Rxd1 {[%emt 0:02:03]} Rc4 {[%emt 0:00:35]} 26. Qd3 {[%emt 0:02:01]} Qxf2+ {[%emt 0:00:39]} 27. Kh1 {[%emt 0:00:03]} Rc2 {[%emt 0:02:45]} 28. Bh3 {[%emt 0:01:12]} Qc5 {[%emt 0:00:55]} 29. Qd4 {[%emt 0:01:05]} Nf2+ {[%emt 0:00:45]} 0-1

[Event "CZE-ch U16 Girls 2023"]
[Site "Teplice"]
[Date "2023.03.18"]
[Round "9.4"]
[White "Dobsa, Emma"]
[Black "Vacekova, Anita"]
[Result "1/2-1/2"]
[ECO "C50"]
[WhiteElo "1449"]
[BlackElo "1350"]
[Annotator "NA RC COMBH"]
[PlyCount "96"]
[EventDate "2023.03.09"]
[EventType "swiss"]
[EventCountry "CZE"]
[SourceTitle "playchess.com"]
[Source "ChessBase"]
[SourceQuality "1"]
[TimeControl "40/5400+30:1800+30"]

1. e4 {[%emt 0:00:33]} e5 {[%emt 0:00:08]} 2. Nf3 {[%emt 0:00:05]} Nc6 {[%emt 0:00:20]} 3. Bc4 {[%emt 0:00:11]} Nf6 {[%emt 0:00:16]} 4. d3 {[%emt 0:00:06]} Bc5 {[%emt 0:01:03]} 5. c3 {[%emt 0:00:01]} d6 {[%emt 0:00:19]} 6. Nbd2 {[%emt 0:00:02]} O-O {[%emt 0:01:28]} 7. O-O {[%emt 0:00:07]} a6 {[%emt 0:05:51]} 8. Bb3 {[%emt 0:00:14]} Ba7 {[%emt 0:07:32]} 9. Re1 {[%emt 0:00:24]} Ng4 {[%emt 0:05:41]} 10. Re2 {[%emt 0:00:32]} Kh8 {[%emt 0:07:04]} 11. h3 {[%emt 0:01:51]} Nf6 {[%emt 0:03:34]} 12. Nf1 {[%emt 0:00:31]} Nh5 {[%emt 0:03:49]} 13. d4 {[%emt 0:14:31]} Qf6 {[%emt 0:07:38]} 14. d5 {[%emt 0:26:30]} Na5 {[%emt 0:07:37]} 15. Be3 {[%emt 0:16:21]} Nf4 {[%emt 0:11:08]} 16. Re1 {[%emt 0:04:51]} Nxb3 {[%emt 0:09:00]} 17. axb3 {[%emt 0:00:22]} g5 {[%emt 0:04:27]} 18. N1h2 {[%emt 0:13:43]} Rg8 {[%emt 0:02:45]} 19. Ng4 {[%emt 0:03:12]} Qg6 {[%emt 0:02:20]} 20. Bxa7 {[%emt 0:02:51]} Rxa7 {[%emt 0:00:23]} 21. Ngxe5 {[%emt 0:01:15]} dxe5 {[%emt 0:01:48]} 22. Nxe5 {[%emt 0:00:01]} Qb6 {[%emt 0:01:54]} 23. Nxf7+ {[%emt 0:01:20]} Kg7 {[%emt 0:00:19]} 24. Nxg5 {[%emt 0:03:51]} h6 {[%emt 0:00:53]} 25. Ne6+ {[%emt 0:01:42]} Bxe6 {[%emt 0:01:41]} 26. dxe6 {[%emt 0:00:01]} Kh7 {[%emt 0:01:29]} 27. Qf3 {[%emt 0:04:19]} Nxe6 {[%emt 0:04:36]} 28. Qf5+ {[%emt 0:01:39]} Rg6 {[%emt 0:01:07]} 29. Rad1 {[%emt 0:01:31]} Qc6 {[%emt 0:02:33]} 30. h4 {[%emt 0:00:57]} Ng7 {[%emt 0:01:04]} 31. Rd7 {[%emt 0:00:35]} Qf6 {[%emt 0:00:46]} 32. Qxf6 {[%emt 0:00:27]} Rxf6 {[%emt 0:00:06]} 33. Rxc7 {[%emt 0:00:05]} Kg6 {[%emt 0:01:12]} 34. Re3 {[%emt 0:01:04]} Nh5 {[%emt 0:01:21]} 35. g4 {[%emt 0:00:43]} Nf4 {[%emt 0:01:23]} 36. h5+ {[%emt 0:00:30]} Kg5 {[%emt 0:00:42]} 37. Rg7+ {[%emt 0:00:51]} Kh4 {[%emt 0:00:21]} 38. Kh2 {[%emt 0:00:39]} Ra8 {[%emt 0:00:58]} 39. Re1 {[%emt 0:00:20]} Nd3 {[%emt 0:01:11]} 40. Rh1 {[%emt 0:01:05]} Nxf2 {[%emt 0:01:47]} 41. e5 {[%emt 0:01:55]} Rf4 {[%emt 0:05:19]} 42. Re1 {[%emt 0:02:24]} Re8 {[%emt 0:05:29]} 43. Rg6 {[%emt 0:04:59]} Nxg4+ {[%emt 0:03:32]} 44. Kg2 {[%emt 0:00:57]} Kxh5 {[%emt 0:03:19]} 45. Rg7 {[%emt 0:01:31]} Nxe5 {[%emt 0:04:59]} 46. Kg3 {[%emt 0:00:21]} Rf3+ {[%emt 0:00:38]} 47. Kg2 {[%emt 0:00:12]} Rf2+ {[%emt 0:01:05]} 48. Kg3 {[%emt 0:01:11]} Rf3+ {[%emt 0:02:52]} 1/2-1/2

[Event "CZE-ch U16 Girls 2023"]
[Site "Teplice"]
[Date "2023.03.18"]
[Round "9.5"]
[White "Dominikova, Denisa"]
[Black "Kavanova, Anezka"]
[Result "1/2-1/2"]
[ECO "B70"]
[WhiteElo "1301"]
[BlackElo "1384"]
[Annotator "NA RC COMBH"]
[PlyCount "90"]
[EventDate "2023.03.09"]
[EventType "swiss"]
[EventCountry "CZE"]
[SourceTitle "playchess.com"]
[Source "ChessBase"]
[SourceQuality "1"]
[TimeControl "40/5400+30:1800+30"]

1. e4 {[%emt 0:00:06]} c5 {[%emt 0:00:04]} 2. Nf3 {[%emt 0:00:15]} d6 {[%emt 0:00:03]} 3. d4 {[%emt 0:00:18]} cxd4 {[%emt 0:00:03]} 4. Nxd4 {[%emt 0:00:14]} Nf6 {[%emt 0:00:05]} 5. Nc3 {[%emt 0:00:16]} g6 {[%emt 0:00:06]} 6. Bc4 {[%emt 0:00:31]} Bg7 {[%emt 0:00:06]} 7. O-O {[%emt 0:00:54]} O-O {[%emt 0:00:08]} 8. h3 {[%emt 0:00:33]} Nc6 {[%emt 0:00:19]} 9. Be3 {[%emt 0:00:35]} Bd7 {[%emt 0:00:30]} 10. Bb3 {[%emt 0:00:26]} Rc8 {[%emt 0:00:13]} 11. Re1 {[%emt 0:01:05]} Na5 {[%emt 0:00:19]} 12. Qe2 {[%emt 0:06:00]} a6 {[%emt 0:04:03]} 13. a4 {[%emt 0:07:11]} Nxb3 {[%emt 0:00:45]} 14. Nxb3 {[%emt 0:06:00]} Be6 {[%emt 0:03:23]} 15. Nd2 {[%emt 0:08:37]} d5 {[%emt 0:02:01]} 16. exd5 {[%emt 0:09:32]} Nxd5 {[%emt 0:00:16]} 17. Nxd5 {[%emt 0:02:50]} Bxd5 {[%emt 0:05:22]} 18. c3 {[%emt 0:01:32]} Be6 {[%emt 0:00:44]} 19. a5 {[%emt 0:04:47]} Be5 {[%emt 0:02:22]} 20. Bh6 {[%emt 0:10:12]} Bg7 {[%emt 0:01:06]} 21. Bxg7 {[%emt 0:00:37]} Kxg7 {[%emt 0:00:09]} 22. Qe5+ {[%emt 0:02:07]} Kg8 {[%emt 0:00:18]} 23. Nf3 {[%emt 0:01:05]} Re8 {[%emt 0:05:48]} 24. Ng5 {[%emt 0:06:17]} Bb3 {[%emt 0:05:47]} 25. Qf4 {[%emt 0:08:49]} Rc5 {[%emt 0:19:59]} 26. Qh4 {[%emt 0:01:24]} h5 {[%emt 0:00:13]} 27. Ne4 {[%emt 0:06:23]} Rc8 {[%emt 0:14:40]} 28. Qg5 {[%emt 0:02:21]} Qd5 {[%emt 0:07:03]} 29. Qh6 {[%emt 0:03:10]} Qe5 {[%emt 0:01:18]} 30. Re3 {[%emt 0:02:25]} Qg7 {[%emt 0:00:22]} 31. Qf4 {[%emt 0:01:14]} f5 32. Ng5 {[%emt 0:03:32]} e5 {[%emt 0:13:32]} 33. Qb4 {[%emt 0:01:20]} Bc4 {[%emt 0:11:02]} 34. Rae1 {[%emt 0:02:01]} Qf6 {[%emt 0:02:13]} 35. Nf3 {[%emt 0:01:02]} e4 {[%emt 0:02:24]} 36. Nd2 {[%emt 0:01:09]} Bd5 {[%emt 0:00:40]} 37. c4 {[%emt 0:01:04]} Bc6 {[%emt 0:00:17]} 38. f3 {[%emt 0:00:53]} Qg5 {[%emt 0:01:10]} 39. fxe4 {[%emt 0:00:36]} f4 {[%emt 0:00:17]} 40. Rf3 {[%emt 0:00:32]} Rcd8 {[%emt 0:00:26]} 41. Qc3 {[%emt 0:11:14]} Re5 {[%emt 0:03:18]} 42. Re2 {[%emt 0:05:57]} Rxa5 {[%emt 0:02:15]} 43. Ref2 {[%emt 0:05:18]} Rf8 {[%emt 0:09:01]} 44. b3 {[%emt 0:01:40]} Re5 {[%emt 0:01:11]} 45. h4 {[%emt 0:01:22]} Qe7 {[%emt 0:02:11]} 1/2-1/2

[Event "CZE-ch U16 Girls 2023"]
[Site "Teplice"]
[Date "2023.03.18"]
[Round "9.6"]
[White "Reznickova, Sibyla"]
[Black "Hrbkova, Johana"]
[Result "0-1"]
[ECO "C48"]
[WhiteElo "1386"]
[BlackElo "1254"]
[Annotator "NA RC COMBH"]
[PlyCount "58"]
[EventDate "2023.03.09"]
[EventType "swiss"]
[EventCountry "CZE"]
[SourceTitle "playchess.com"]
[Source "ChessBase"]
[SourceQuality "1"]
[TimeControl "40/5400+30:1800+30"]

1. e4 {[%emt 0:00:09]} e5 {[%emt 0:00:11]} 2. Nc3 {[%emt 0:00:21]} Nf6 {[%emt 0:00:16]} 3. Nf3 {[%emt 0:00:37]} Nc6 {[%emt 0:00:50]} 4. Bb5 {[%emt 0:00:17]} d6 {[%emt 0:01:56]} 5. d3 {[%emt 0:00:32]} Be7 {[%emt 0:00:27]} 6. O-O {[%emt 0:01:18]} O-O {[%emt 0:00:26]} 7. Bg5 {[%emt 0:06:14]} Bg4 {[%emt 0:01:29]} 8. Bxc6 {[%emt 0:00:56]} bxc6 {[%emt 0:00:11]} 9. Re1 {[%emt 0:04:53]} Nd7 {[%emt 0:05:52]} 10. Bxe7 {[%emt 0:03:38]} Qxe7 {[%emt 0:00:12]} 11. Re3 {[%emt 0:01:52]} f5 {[%emt 0:07:06]} 12. d4 {[%emt 0:10:10]} fxe4 {[%emt 0:05:19]} 13. Nxe4 {[%emt 0:00:41]} d5 {[%emt 0:04:23]} 14. Ng3 {[%emt 0:07:44]} e4 {[%emt 0:07:50]} 15. h3 {[%emt 0:05:53]} Bxf3 {[%emt 0:01:32]} 16. gxf3 {[%emt 0:00:32]} Qf6 {[%emt 0:02:25]} 17. Nh5 {[%emt 0:05:22]} Qh4 {[%emt 0:10:06]} 18. f4 {[%emt 0:01:39]} g6 {[%emt 0:06:32]} 19. Ng3 {[%emt 0:05:35]} Rxf4 {[%emt 0:02:46]} 20. Kg2 {[%emt 0:00:53]} Raf8 {[%emt 0:05:08]} 21. Qe2 {[%emt 0:01:13]} Rf3 {[%emt 0:02:23]} 22. Rf1 {[%emt 0:02:32]} c5 {[%emt 0:08:28]} 23. c3 {[%emt 0:06:34]} cxd4 {[%emt 0:00:59]} 24. cxd4 {[%emt 0:00:14]} c5 {[%emt 0:00:31]} 25. Qd2 {[%emt 0:06:16]} c4 {[%emt 0:12:11]} 26. b3 {[%emt 0:14:24]} cxb3 {[%emt 0:05:43]} 27. axb3 {[%emt 0:00:14]} Nf6 {[%emt 0:00:39]} 28. Rxf3 {[%emt 0:05:25]} exf3+ {[%emt 0:00:15]} 29. Kh2 {[%emt 0:01:48]} Ng4+ {[%emt 0:00:27]} 0-1

[Event "CZE-ch U16 Girls 2023"]
[Site "Teplice"]
[Date "2023.03.18"]
[Round "9.7"]
[White "Stavova, Marketa"]
[Black "Hetfleischova, Elen"]
[Result "0-1"]
[ECO "B30"]
[WhiteElo "1284"]
[BlackElo "1623"]
[Annotator "NA RC COMBH"]
[PlyCount "82"]
[EventDate "2023.03.09"]
[EventType "swiss"]
[EventCountry "CZE"]
[SourceTitle "playchess.com"]
[Source "ChessBase"]
[SourceQuality "1"]
[TimeControl "40/5400+30:1800+30"]

1. e4 {[%emt 0:00:05]} c5 {[%emt 0:00:14]} 2. Nf3 {[%emt 0:00:14]} Nc6 {[%emt 0:00:04]} 3. Bb5 {[%emt 0:00:40]} a6 {[%emt 0:00:15]} 4. Bxc6 {[%emt 0:00:46]} bxc6 {[%emt 0:00:10]} 5. O-O {[%emt 0:00:47]} d5 {[%emt 0:00:25]} 6. e5 {[%emt 0:01:19]} g6 {[%emt 0:01:34]} 7. c3 {[%emt 0:01:22]} d4 {[%emt 0:00:57]} 8. cxd4 {[%emt 0:00:50]} cxd4 {[%emt 0:00:24]} 9. Qa4 {[%emt 0:00:32]} Bb7 {[%emt 0:01:19]} 10. Nxd4 {[%emt 0:00:41]} Rc8 {[%emt 0:00:58]} 11. Nc3 {[%emt 0:01:16]} Bg7 {[%emt 0:02:20]} 12. Re1 {[%emt 0:01:17]} e6 {[%emt 0:00:51]} 13. Nf3 {[%emt 0:00:56]} Ne7 {[%emt 0:00:57]} 14. Qg4 {[%emt 0:01:39]} c5 {[%emt 0:09:33]} 15. Rd1 {[%emt 0:02:37]} Qd3 {[%emt 0:03:18]} 16. Re1 {[%emt 0:04:56]} Nf5 {[%emt 0:06:44]} 17. Ne4 {[%emt 0:03:24]} h5 {[%emt 0:11:47]} 18. Qf4 {[%emt 0:00:59]} Bh6 {[%emt 0:03:57]} 19. Nfg5 {[%emt 0:02:48]} O-O {[%emt 0:05:31]} 20. Qf3 {[%emt 0:04:59]} Qb5 {[%emt 0:03:43]} 21. Nf6+ {[%emt 0:02:32]} Kg7 {[%emt 0:05:41]} 22. Nge4 {[%emt 0:00:23]} Nd4 {[%emt 0:04:22]} 23. Qd1 {[%emt 0:06:16]} Rcd8 {[%emt 0:06:43]} 24. Nd6 {[%emt 0:04:09]} Rxd6 {[%emt 0:06:03]} 25. Nxh5+ {[%emt 0:01:13]} gxh5 {[%emt 0:01:52]} 26. exd6 {[%emt 0:00:04]} Qc6 {[%emt 0:01:05]} 27. f3 {[%emt 0:00:06]} Kh7 {[%emt 0:04:23]} 28. d3 {[%emt 0:02:21]} Rg8 {[%emt 0:02:27]} 29. Rf1 {[%emt 0:02:44]} Bf8 {[%emt 0:07:50]} 30. Kh1 {[%emt 0:02:16]} Bxd6 {[%emt 0:02:28]} 31. Qd2 {[%emt 0:00:39]} Bf8 {[%emt 0:01:31]} 32. Qf4 {[%emt 0:03:00]} Nf5 {[%emt 0:02:09]} 33. Qe5 {[%emt 0:04:41]} Bd6 {[%emt 0:01:08]} 34. Qf6 {[%emt 0:00:40]} Qc7 {[%emt 0:00:19]} 35. g3 {[%emt 0:01:33]} Rg6 {[%emt 0:01:40]} 36. Qc3 {[%emt 0:00:24]} Bxg3 {[%emt 0:00:40]} 37. Qd2 {[%emt 0:01:10]} Be5 {[%emt 0:02:02]} 38. Qf2 {[%emt 0:01:10]} Bd4 {[%emt 0:00:52]} 39. Qe2 {[%emt 0:00:52]} Nh4 {[%emt 0:00:39]} 40. Be3 {[%emt 0:01:00]} Bxe3 {[%emt 0:00:29]} 41. Qxe3 {[%emt 0:30:06]} Rg2 {[%emt 0:30:08]} 0-1

[Event "CZE-ch U16 Girls 2023"]
[Site "Teplice"]
[Date "2023.03.18"]
[Round "9.8"]
[White "Andilova, Klara"]
[Black "Vavrinkova, Marie"]
[Result "0-1"]
[ECO "B07"]
[WhiteElo "1104"]
[BlackElo "1457"]
[Annotator "NA RC COMBH"]
[PlyCount "66"]
[EventDate "2023.03.09"]
[EventType "swiss"]
[EventCountry "CZE"]
[SourceTitle "playchess.com"]
[Source "ChessBase"]
[SourceQuality "1"]
[TimeControl "40/5400+30:1800+30"]

1. e4 {[%emt 0:00:02]} d6 {[%emt 0:00:08]} 2. d4 {[%emt 0:02:03]} Nf6 {[%emt 0:00:16]} 3. Nc3 {[%emt 0:00:57]} g6 {[%emt 0:00:30]} 4. g3 {[%emt 0:02:58]} Bg7 {[%emt 0:01:47]} 5. Bg2 {[%emt 0:06:08]} O-O {[%emt 0:01:14]} 6. Nge2 {[%emt 0:00:23]} e5 {[%emt 0:02:45]} 7. O-O {[%emt 0:00:59]} Nh5 {[%emt 0:06:54]} 8. f4 {[%emt 0:11:49]} Bg4 {[%emt 0:03:51]} 9. Qd3 {[%emt 0:08:39]} Nc6 {[%emt 0:06:20]} 10. Be3 {[%emt 0:05:50]} Qd7 {[%emt 0:09:32]} 11. Rf2 {[%emt 0:07:08]} Nf6 {[%emt 0:03:17]} 12. a3 {[%emt 0:04:12]} Bh3 {[%emt 0:00:46]} 13. dxe5 {[%emt 0:07:46]} dxe5 {[%emt 0:01:38]} 14. Qxd7 {[%emt 0:00:49]} Bxd7 {[%emt 0:00:04]} 15. h3 {[%emt 0:02:57]} Rfe8 {[%emt 0:05:59]} 16. f5 {[%emt 0:03:17]} Na5 {[%emt 0:05:18]} 17. b3 {[%emt 0:03:25]} b6 {[%emt 0:03:10]} 18. g4 {[%emt 0:02:35]} h6 {[%emt 0:02:12]} 19. Bf3 {[%emt 0:02:06]} c5 {[%emt 0:01:54]} 20. h4 {[%emt 0:02:37]} Nh7 {[%emt 0:02:33]} 21. Rh2 {[%emt 0:03:48]} Nc6 {[%emt 0:02:36]} 22. Nd5 {[%emt 0:06:21]} Rac8 {[%emt 0:00:53]} 23. Ng3 {[%emt 0:02:53]} Nd4 {[%emt 0:00:59]} 24. Bd1 {[%emt 0:00:19]} c4 {[%emt 0:01:43]} 25. Rb1 {[%emt 0:03:42]} Bc6 {[%emt 0:03:27]} 26. Nc3 {[%emt 0:05:14]} cxb3 {[%emt 0:02:20]} 27. cxb3 {[%emt 0:01:15]} Bb7 {[%emt 0:01:18]} 28. Rc1 {[%emt 0:00:36]} Bf8 {[%emt 0:01:41]} 29. b4 {[%emt 0:01:57]} a5 {[%emt 0:00:27]} 30. Rb2 {[%emt 0:00:32]} Rc4 {[%emt 0:02:36]} 31. Kf2 {[%emt 0:01:49]} axb4 {[%emt 0:01:47]} 32. axb4 {[%emt 0:00:39]} Bxb4 {[%emt 0:00:17]} 33. Bd2 {[%emt 0:00:42]} Ba3 {[%emt 0:00:34]} 0-1

[Event "CZE-ch U16 Girls 2023"]
[Site "Teplice"]
[Date "2023.03.18"]
[Round "9.9"]
[White "Barteckova, Denisa"]
[Black "Archlebova, Stela"]
[Result "1/2-1/2"]
[ECO "C55"]
[WhiteElo "1417"]
[BlackElo "1360"]
[Annotator "NA RC COMBH"]
[PlyCount "99"]
[EventDate "2023.03.09"]
[EventType "swiss"]
[EventCountry "CZE"]
[SourceTitle "playchess.com"]
[Source "ChessBase"]
[SourceQuality "1"]
[TimeControl "40/5400+30:1800+30"]

1. e4 {[%emt 0:00:01]} e5 {[%emt 0:00:08]} 2. Nf3 {[%emt 0:00:03]} Nc6 {[%emt 0:00:07]} 3. Bc4 {[%emt 0:00:04]} Nf6 {[%emt 0:00:20]} 4. d3 {[%emt 0:00:06]} d6 {[%emt 0:00:36]} 5. h3 {[%emt 0:00:06]} Be7 {[%emt 0:00:11]} 6. c3 {[%emt 0:00:23]} Na5 {[%emt 0:00:55]} 7. Bb5+ {[%emt 0:00:24]} c6 {[%emt 0:01:17]} 8. Ba4 {[%emt 0:00:06]} b5 {[%emt 0:00:45]} 9. Bc2 {[%emt 0:00:07]} Qc7 {[%emt 0:06:44]} 10. a4 {[%emt 0:02:03]} bxa4 {[%emt 0:06:02]} 11. Rxa4 {[%emt 0:02:22]} Bd7 {[%emt 0:03:14]} 12. Ra1 {[%emt 0:03:22]} Nb7 {[%emt 0:04:20]} 13. Be3 {[%emt 0:01:05]} Nd8 {[%emt 0:02:12]} 14. Nbd2 {[%emt 0:02:15]} O-O {[%emt 0:02:16]} 15. O-O {[%emt 0:00:09]} Ne6 {[%emt 0:01:15]} 16. Ra2 {[%emt 0:03:16]} a6 {[%emt 0:02:07]} 17. Nc4 {[%emt 0:00:43]} Rfb8 {[%emt 0:05:23]} 18. Qa1 {[%emt 0:00:20]} Nh5 {[%emt 0:11:05]} 19. Rxa6 {[%emt 0:03:31]} Rxa6 {[%emt 0:00:09]} 20. Qxa6 {[%emt 0:00:09]} Bc8 {[%emt 0:03:04]} 21. Qa2 {[%emt 0:00:44]} Nef4 {[%emt 0:06:21]} 22. Kh2 {[%emt 0:02:16]} Kh8 {[%emt 0:05:27]} 23. g4 {[%emt 0:00:45]} Nf6 {[%emt 0:20:48]} 24. Bxf4 {[%emt 0:00:41]} exf4 {[%emt 0:00:09]} 25. e5 {[%emt 0:03:07]} dxe5 {[%emt 0:02:02]} 26. Ncxe5 {[%emt 0:00:59]} Be6 {[%emt 0:03:49]} 27. Nxf7+ {[%emt 0:01:18]} Bxf7 {[%emt 0:00:20]} 28. Qxf7 {[%emt 0:00:06]} Rf8 {[%emt 0:01:27]} 29. Qe6 {[%emt 0:02:20]} Bd6 {[%emt 0:05:30]} 30. Re1 {[%emt 0:01:03]} Qb6 {[%emt 0:04:31]} 31. d4 {[%emt 0:00:28]} c5 {[%emt 0:01:00]} 32. Ne5 {[%emt 0:04:13]} Qc7 {[%emt 0:00:00]} 33. f3 {[%emt 0:00:00]} cxd4 34. g5 {[%emt 0:00:00]} Ng8 {[%emt 0:00:00]} 35. g6 {[%emt 0:00:00]} Bxe5 {[%emt 0:00:00]} 36. Rxe5 {[%emt 0:00:00]} h6 {[%emt 0:00:00]} 37. Bb3 {[%emt 0:00:00]} Qb8 {[%emt 0:00:00]} 38. cxd4 {[%emt 0:00:00]} Qb4 {[%emt 0:00:00]} 39. Qc4 {[%emt 0:00:00]} Qb7 {[%emt 0:00:00]} 40. Kg2 {[%emt 0:00:00]} Qb6 {[%emt 0:00:00]} 41. Re6 {[%emt 0:18:35]} Qd8 {[%emt 0:22:27]} 42. d5 {[%emt 0:02:52]} Qh4 {[%emt 0:02:09]} 43. Qc3 {[%emt 0:02:18]} Qg3+ {[%emt 0:01:39]} 44. Kf1 {[%emt 0:00:05]} Qxh3+ {[%emt 0:00:08]} 45. Ke1 {[%emt 0:00:32]} Qg3+ {[%emt 0:00:55]} 46. Kd2 {[%emt 0:01:00]} Qf2+ {[%emt 0:01:00]} 47. Re2 {[%emt 0:01:40]} Qg3 {[%emt 0:00:24]} 48. d6 {[%emt 0:03:43]} Qxg6 {[%emt 0:00:12]} 49. Bxg8 Qxd6+ 50. Qd3 {[%emt 0:02:28]} 1/2-1/2